bitfinex/quotes_BTCUSD_20251120
["timestamp","ask_amount","ask_price","bid_price","bid_amount"]
[1763610827717,0.00370853,92558.0,92557.0,0.21608306]
[1763610828535,0.00370853,92558.0,92557.0,0.21708306]
[1763610829617,0.00370853,92558.0,92557.0,0.21808306]
[1763610829803,6.853e-05,92558.0,92557.0,0.24200306]
[1763610830440,6.853e-05,92558.0,92557.0,0.24100306]
[1763610830731,0.00406853,92558.0,92557.0,0.24100306]
[1763610830948,0.00406853,92558.0,92557.0,0.34100306]
[1763610833290,0.00406853,92558.0,92557.0,0.32854306]
[1763610836014,0.00406853,92558.0,92557.0,0.1]
[1763610836419,0.00406853,92558.0,92556.0,0.21608353]
[1763610837477,6.853e-05,92558.0,92556.0,0.21608353]
[1763610837804,0.00406853,92558.0,92556.0,0.21608353]
[1763610838174,0.00406853,92558.0,92557.0,0.01246]
[1763610838374,0.00406853,92558.0,92557.0,0.03855584]
[1763610839114,6.853e-05,92558.0,92557.0,0.13855584]
[1763610839596,0.00406853,92558.0,92557.0,0.14402297]
[1763610839799,0.00406853,92558.0,92557.0,0.13804473]
[1763610840217,0.00406853,92558.0,92557.0,0.14367611]
[1763610841503,0.00406853,92558.0,92557.0,0.11875611]
[1763610841701,0.00406853,92558.0,92557.0,0.1]
[1763610842691,0.00406853,92558.0,92557.0,0.11246]
[1763610845253,0.00406853,92558.0,92557.0,0.1465283]
[1763610845467,0.00406853,92558.0,92557.0,0.1340683]
[1763610846098,0.00406853,92558.0,92557.0,0.1]
[1763610847310,0.00406853,92558.0,92557.0,0.11246]
[1763610850155,0.25979925,92558.0,92557.0,0.1]
[1763610850369,0.04371853,92558.0,92557.0,0.1]
[1763610850939,0.02056853,92558.0,92557.0,0.1]
[1763610851166,0.01080426,92556.0,92552.0,0.01080473]
[1763610851440,0.1102925,92553.0,92551.0,0.01080485]
[1763610851614,0.1102925,92553.0,92551.0,0.22690016]
[1763610851776,0.1102925,92553.0,92550.0,0.01705497]
[1763610852172,0.32638497,92553.0,92550.0,0.00625]
[1763610852397,0.33718959,92553.0,92552.0,0.001]
[1763610852773,0.33718959,92553.0,92551.0,0.001]
[1763610852988,0.33718959,92553.0,92550.0,0.00625]
[1763610853351,0.33718959,92553.0,92550.0,0.00825]
[1763610853468,0.21609705,92552.0,92550.0,0.00825]
[1763610854474,0.0108059,92542.0,92534.0,0.2223455]
[1763610854752,0.01080648,92537.0,92534.0,0.01701683]
[1763610854955,0.1102925,92539.0,92536.0,0.0108066]
[1763610855156,0.1102925,92539.0,92538.0,0.21612742]
[1763610855571,0.00364,92541.0,92540.0,0.21612275]
[1763610856544,0.00364,92541.0,92538.0,0.01080637]
[1763610856752,0.00364,92541.0,92538.0,0.2269316]
[1763610856958,0.00364,92541.0,92540.0,0.21612275]
[1763610858301,0.00764,92541.0,92539.0,0.21612304]
[1763610858496,0.00864,92541.0,92539.0,0.21612304]
[1763610858909,0.00764,92541.0,92539.0,0.21612304]
[1763610859278,0.00864,92541.0,92539.0,0.21612304]
[1763610859480,0.00464,92541.0,92539.0,0.21612304]
[1763610859883,0.00864,92541.0,92539.0,0.21612304]
[1763610860117,0.00764,92541.0,92539.0,0.21612304]
[1763610860687,0.00764,92541.0,92538.0,0.2269316]
[1763610860890,0.1102925,92539.0,92538.0,0.01080637]
[1763610862408,0.1112925,92539.0,92538.0,0.01080637]
[1763610862641,0.1152925,92539.0,92538.0,0.01080637]
[1763610863934,0.005,92539.0,92538.0,0.05733911]
[1763610864777,0.005,92539.0,92538.0,0.15733911]
[1763610864977,0.001,92539.0,92538.0,0.15733911]
[1763610865347,0.00364,92544.0,92543.0,0.21611575]
[1763610865546,0.00364,92544.0,92543.0,0.25018732]
[1763610865702,0.00364,92544.0,92543.0,0.24103575]
[1763610865904,0.00364,92544.0,92543.0,0.26264732]
[1763610866272,0.00364,92544.0,92543.0,0.25018732]
[1763610866741,0.00464,92544.0,92543.0,0.35018732]
[1763610866976,0.04289,92544.0,92543.0,0.1]
[1763610868044,0.01080625,92539.0,92535.0,0.01080672]
[1763610868214,0.12109875,92539.0,92535.0,0.01080672]
[1763610869059,0.01080672,92535.0,92528.0,0.01080753]
[1763610869259,0.22694874,92532.0,92528.0,0.01080753]
[1763610869484,0.22694874,92532.0,92524.0,0.010808]
[1763610869485,0.01080742,92529.0,92524.0,0.010808]
[1763610869668,0.01080742,92529.0,92520.0,2.03432498]
[1763610869669,0.22697058,92523.0,92520.0,2.03432498]
[1763610869866,0.01528,92521.0,92520.0,2.03432498]
[1763610870290,0.01164,92537.0,92528.0,0.01080753]
[1763610870490,0.01444718,92531.0,92525.0,0.22696415]
[1763610870787,0.00364,92531.0,92527.0,0.01080765]
[1763610871003,0.01444718,92531.0,92527.0,0.01080765]
[1763610871360,0.01444718,92531.0,92528.0,0.001]
[1763610871781,0.00364,92531.0,92528.0,0.21615078]
[1763610871979,0.00364,92531.0,92529.0,0.21614614]
[1763610874294,0.00364,92531.0,92529.0,0.21714614]
[1763610874724,0.02244648,92537.0,92536.0,0.21613209]
[1763610874725,0.01164,92537.0,92536.0,0.21613209]
[1763610874990,0.00364,92537.0,92536.0,0.22693869]
[1763610875867,0.00364,92537.0,92536.0,0.22793869]
[1763610876424,0.00364,92537.0,92536.0,0.0108066]
[1763610876847,0.00364,92537.0,92536.0,0.0128066]
[1763610877572,0.02011,92537.0,92536.0,0.0128066]
[1763610877769,0.02011,92537.0,92536.0,0.0138066]
[1763610877975,0.02011,92537.0,92536.0,0.003]
[1763610878392,0.31980047,92537.0,92536.0,0.003]
[1763610878591,0.25908976,92537.0,92536.0,0.003]
[1763610878793,0.27123976,92537.0,92536.0,0.003]
[1763610879094,0.27123976,92537.0,92536.0,0.002]
[1763610879521,0.01080718,92531.0,92523.0,0.01080812]
[1763610879727,0.01080718,92531.0,92527.0,0.01080765]
[1763610880150,0.02862,92528.0,92526.0,0.01080777]
[1763610880354,0.01647,92527.0,92526.0,0.01080777]
[1763610880535,0.03932,92527.0,92526.0,0.01080777]
[1763610881343,0.23262324,92527.0,92525.0,4.219e-05]
[1763610881586,0.00364,92526.0,92525.0,4.219e-05]
[1763610881769,0.00364,92526.0,92525.0,0.00104219]
[1763610882119,0.00364,92526.0,92525.0,4.219e-05]
[1763610882559,0.21979545,92526.0,92525.0,0.00104219]
[1763610882768,0.00364,92526.0,92525.0,0.00104219]
[1763610882968,0.00364,92526.0,92525.0,4.219e-05]
[1763610883175,0.04296,92526.0,92525.0,0.00104219]
[1763610883604,0.04296,92526.0,92525.0,0.00304219]
[1763610897055,0.06457286,92526.0,92525.0,0.00304219]
[1763610897260,0.04296,92526.0,92525.0,0.00304219]
[1763610898503,0.04286,92526.0,92525.0,0.00304219]
[1763610898874,0.28062831,92526.0,92525.0,0.00304219]
[1763610899072,0.27927071,92526.0,92525.0,0.00304219]
[1763610899973,0.27926697,92526.0,92525.0,0.00104219]
[1763610900404,0.27926697,92526.0,92525.0,0.00204219]
[1763610900601,0.27926697,92526.0,92525.0,0.00104219]
[1763610901057,0.27926697,92526.0,92525.0,0.00204219]
[1763610902586,0.60226697,92526.0,92525.0,0.00104219]
[1763610903003,0.60226697,92526.0,92525.0,0.00204219]
[1763610903599,0.27572697,92526.0,92525.0,0.00104219]
[1763610903797,0.25911545,92526.0,92525.0,0.00104219]
[1763610904138,0.25911545,92526.0,92525.0,0.00204219]
[1763610906968,0.60236974,92526.0,92525.0,0.00204219]
[1763610907440,0.60237193,92526.0,92525.0,0.00204219]
[1763610913593,0.63483624,92526.0,92525.0,0.00204219]
[1763610919037,0.63483624,92526.0,92525.0,0.00104219]
[1763610919251,0.63483624,92526.0,92525.0,4.219e-05]
[1763610919455,0.63483624,92526.0,92525.0,0.00104219]
[1763610919691,0.63583624,92526.0,92525.0,0.00104219]
[1763610919868,0.63483624,92526.0,92525.0,4.219e-05]
[1763610920425,0.63583624,92526.0,92525.0,0.00104219]
[1763610922988,0.61557976,92526.0,92525.0,0.00104219]
[1763610923158,0.63583898,92526.0,92525.0,0.00104219]
[1763610925473,0.01080812,92523.0,92520.0,1.83926568]
[1763610925642,0.34235964,92521.0,92520.0,1.83926568]
[1763610926121,0.39754603,92521.0,92520.0,1.83926568]
[1763610926479,0.41781421,92521.0,92520.0,1.83926568]
[1763610926830,0.41781421,92521.0,92520.0,1.84026568]
[1763610928346,0.41881421,92521.0,92520.0,1.84026568]
[1763610930171,0.74181421,92521.0,92520.0,1.84026568]
[1763610931649,0.75194782,92521.0,92520.0,1.84026568]
[1763610934331,0.75194087,92521.0,92520.0,1.84026568]
[1763610935722,0.75194176,92521.0,92520.0,1.84026568]
[1763610936329,0.75194176,92521.0,92520.0,1.83598568]
[1763610936330,0.91318,92521.0,92520.0,1.83598568]
[1763610936584,0.82737662,92521.0,92520.0,1.83598568]
[1763610937609,0.82637662,92521.0,92520.0,1.83598568]
[1763610938026,0.82737662,92521.0,92520.0,1.83598568]
[1763610938232,0.82737662,92521.0,92520.0,1.83498568]
[1763610943052,0.80710844,92521.0,92520.0,1.83498568]
[1763610943283,0.82734059,92521.0,92520.0,1.83498568]
[1763610943658,1.05030822,92521.0,92520.0,0.56791878]
[1763610943867,1.07361345,92521.0,92520.0,0.56791878]
[1763610944464,0.21617648,92517.0,92516.0,0.00022978]
[1763610944640,0.65859153,92517.0,92516.0,0.00027205]
[1763610944839,0.66068867,92517.0,92516.0,0.00027205]
[1763610945050,0.66501858,92517.0,92516.0,0.00027205]
[1763610945925,0.66701858,92517.0,92516.0,0.00027205]
[1763610948037,0.66698886,92517.0,92516.0,0.00027205]
[1763610948712,0.91328886,92517.0,92516.0,0.00027205]
[1763610950989,0.52807638,92517.0,92516.0,0.00027205]
[1763610951119,0.51149639,92517.0,92516.0,0.00027205]
[1763610951510,0.83449639,92517.0,92516.0,0.00027205]
[1763610951682,0.53172483,92517.0,92516.0,0.00027205]
[1763610952031,0.85272483,92517.0,92516.0,0.00127205]
[1763610952673,0.85272483,92517.0,92516.0,0.00027205]
[1763610953079,0.85272447,92517.0,92516.0,0.00027205]
[1763610953659,0.85372447,92517.0,92516.0,0.00027205]
[1763610958205,0.85374519,92517.0,92516.0,0.00027205]
[1763610959850,0.22703288,92498.0,92492.0,0.07381629]
[1763610960051,0.1201525,92493.0,92492.0,0.07381629]
[1763610960357,0.1201525,92493.0,92492.0,0.08462803]
[1763610961134,0.1354925,92493.0,92492.0,0.08462803]
[1763610961738,0.03147286,92496.0,92495.0,0.2162279]
[1763610961739,0.02161286,92496.0,92495.0,0.2162279]
[1763610961873,0.00364,92497.0,92495.0,0.2286879]
[1763610962298,0.00986,92504.0,92503.0,0.2162092]
[1763610962499,0.0135,92504.0,92503.0,0.2162092]
[1763610962701,0.0135,92504.0,92501.0,0.22702252]
[1763610962908,0.02525286,92503.0,92502.0,0.22702011]
[1763610963895,0.02525286,92503.0,92501.0,0.21621375]
[1763610964940,0.00364,92503.0,92502.0,0.001]
[1763610965352,0.00364,92503.0,92501.0,0.21621375]
[1763610965712,0.00364,92503.0,92502.0,0.00040217]
[1763610967355,0.00364,92503.0,92502.0,0.00140217]
[1763610969050,0.2596492,92503.0,92502.0,0.00140217]
[1763610971263,0.2596492,92503.0,92502.0,0.00040217]
[1763610971665,0.2596492,92503.0,92502.0,0.00140217]
[1763610974505,0.59346199,92503.0,92502.0,0.00140217]
[1763610974703,0.61368655,92503.0,92502.0,0.00140217]
[1763610976035,0.61468655,92503.0,92502.0,0.00040217]
[1763610976428,0.61468655,92503.0,92502.0,0.00140217]
[1763610982846,0.61468596,92503.0,92502.0,0.00140217]
[1763610991637,0.61468244,92503.0,92502.0,0.00140217]
[1763610994045,0.39483324,92503.0,92502.0,0.00140217]
[1763610994259,0.36744,92503.0,92502.0,0.00140217]
[1763610994491,0.04444,92503.0,92502.0,0.00140217]
[1763610994704,0.08526861,92503.0,92502.0,0.00140217]
[1763610994933,0.06503257,92503.0,92502.0,0.00140217]
[1763610995605,0.0852728,92503.0,92502.0,0.00140217]
[1763610997168,0.40929309,92503.0,92502.0,0.00140217]
[1763610997339,0.38768023,92503.0,92502.0,0.00140217]
[1763611000669,0.38404023,92503.0,92502.0,0.00140217]
[1763611000878,0.06468023,92503.0,92502.0,0.00140217]
[1763611001117,0.08629309,92503.0,92502.0,0.00140217]
[1763611001320,0.04285309,92503.0,92502.0,0.00140217]
[1763611001527,0.00464,92503.0,92502.0,0.00140217]
[1763611001736,0.00464,92503.0,92502.0,0.21761371]
[1763611001937,0.04341,92503.0,92502.0,0.00140217]
[1763611002143,0.04341,92503.0,92502.0,0.00040217]
[1763611002365,0.04241,92503.0,92502.0,0.00040217]
[1763611002556,0.04241,92503.0,92502.0,0.00140217]
[1763611002987,0.01080964,92510.0,92502.0,0.00140217]
[1763611002988,0.01188,92519.0,92517.0,0.21617648]
[1763611003199,0.00364,92518.0,92517.0,0.21617648]
[1763611003414,0.01898,92518.0,92517.0,0.21617648]
[1763611003665,0.01534,92518.0,92517.0,0.21617648]
[1763611003885,0.00364,92518.0,92517.0,0.21617648]
[1763611005400,0.00364,92518.0,92517.0,0.21717648]
[1763611005734,0.01188,92545.0,92540.0,0.01080613]
[1763611005971,0.1139325,92543.0,92542.0,0.21611808]
[1763611006225,0.1139325,92543.0,92540.0,0.01080613]
[1763611006450,0.1139325,92543.0,92542.0,0.21611808]
[1763611006651,0.1139325,92543.0,92540.0,0.22692788]
[1763611006863,0.01080637,92538.0,92529.0,0.00625]
[1763611007070,0.22694649,92533.0,92527.0,0.01080765]
[1763611007290,0.1102925,92528.0,92525.0,0.01080788]
[1763611007515,0.1102925,92528.0,92526.0,0.21615545]
[1763611008765,0.1122925,92528.0,92526.0,0.21615545]
[1763611010150,0.002,92528.0,92527.0,0.02492]
[1763611011115,0.00364,92534.0,92532.0,0.21614144]
[1763611011336,0.00364,92534.0,92533.0,0.01871]
[1763611011510,0.00364,92534.0,92533.0,0.03117]
[1763611012713,0.00464,92534.0,92533.0,0.03117]
[1763611012921,0.001,92534.0,92533.0,0.03117]
[1763611013124,0.002,92534.0,92533.0,0.40627249]
[1763611013471,0.002,92534.0,92533.0,0.53871742]
[1763611014130,0.002,92534.0,92533.0,0.63871742]
[1763611014365,0.001,92534.0,92533.0,0.63871742]
[1763611014580,0.00364,92552.0,92541.0,0.01080602]
[1763611014794,0.00364,92552.0,92543.0,0.01246]
[1763611015234,0.00364,92552.0,92543.0,0.02492]
[1763611015769,0.00338487,92544.0,92543.0,0.02492]
[1763611015975,0.00238487,92544.0,92543.0,0.12492]
[1763611016528,0.00438487,92544.0,92543.0,0.12492]
[1763611016733,0.00338487,92544.0,92543.0,0.50002249]
[1763611017154,0.00338487,92544.0,92543.0,0.51082559]
[1763611017766,0.00364,92568.0,92567.0,0.21605971]
[1763611017991,0.00364,92568.0,92567.0,0.22851971]
[1763611018963,0.00364,92568.0,92567.0,0.22951971]
[1763611019160,0.00364,92568.0,92567.0,0.32951971]
[1763611020461,0.00372681,92568.0,92567.0,0.32951971]
[1763611021824,8.681e-05,92568.0,92567.0,0.3940822]
[1763611022761,8.681e-05,92568.0,92567.0,0.3930822]
[1763611023215,0.00208681,92568.0,92567.0,0.3930822]
[1763611023419,0.00277561,92568.0,92567.0,0.3930822]
[1763611027274,0.00277561,92568.0,92567.0,0.34097971]
[1763611027543,0.00277561,92568.0,92567.0,0.11246]
[1763611027798,0.00277561,92568.0,92567.0,0.12123706]
[1763611028035,0.00277561,92568.0,92567.0,0.1]
[1763611028736,0.00641561,92568.0,92567.0,0.1]
[1763611029467,0.00641561,92568.0,92567.0,0.11246]
[1763611029658,0.00641561,92568.0,92567.0,0.01246]
[1763611029861,0.03279847,92568.0,92561.0,0.00621]
[1763611030038,0.1102925,92564.0,92562.0,0.21607138]
[1763611030242,0.01080321,92565.0,92561.0,0.00621]
[1763611030378,0.0108031,92566.0,92561.0,0.23308716]
[1763611030584,0.0108031,92566.0,92562.0,0.01080356]
[1763611030793,0.2315885,92568.0,92564.0,0.22687005]
[1763611031195,0.22686623,92566.0,92563.0,0.1]
[1763611031395,0.1112925,92564.0,92563.0,0.1]
[1763611031591,0.1102925,92564.0,92563.0,0.1]
[1763611032628,0.001,92564.0,92563.0,0.1]
[1763611033078,0.001,92564.0,92563.0,0.31606905]
[1763611033281,0.02114063,92564.0,92563.0,0.31606905]
[1763611033696,0.02114063,92564.0,92563.0,0.1]
[1763611035463,0.13143313,92564.0,92563.0,0.1]
[1763611035880,0.13200715,92564.0,92563.0,0.1]
[1763611036277,0.18214715,92564.0,92563.0,0.1]
[1763611036665,0.01080438,92555.0,92551.0,0.01080485]
[1763611036954,0.00022964,92552.0,92549.0,0.01080508]
[1763611037126,0.02014063,92551.0,92549.0,0.22690513]
[1763611037268,0.02014063,92550.0,92549.0,0.22690513]
[1763611037805,0.02014063,92550.0,92549.0,0.32690513]
[1763611038188,0.02014063,92550.0,92549.0,0.1]
[1763611038811,0.02114063,92550.0,92549.0,0.13407017]
[1763611039030,0.02214063,92550.0,92549.0,0.14653017]
[1763611043641,0.02014063,92550.0,92549.0,0.14653017]
[1763611044159,0.02214063,92550.0,92549.0,0.14653017]
[1763611046241,0.02214063,92550.0,92549.0,0.12492]
[1763611046413,0.02214063,92550.0,92549.0,0.11246]
[1763611046642,0.02214063,92550.0,92549.0,0.1]
[1763611046821,0.02214063,92550.0,92549.0,0.11246]
[1763611049849,0.06179063,92550.0,92549.0,0.1]
[1763611050051,0.27789003,92550.0,92549.0,0.1]
[1763611050255,0.03816063,92550.0,92549.0,0.1]
[1763611050427,0.02214063,92550.0,92549.0,0.1]
[1763611050825,0.02014063,92550.0,92549.0,0.1]
[1763611051035,0.0309456,92550.0,92547.0,0.01080532]
[1763611051211,0.01180497,92550.0,92549.0,0.001]
[1763611051416,0.03202191,92550.0,92549.0,0.001]
[1763611051615,0.03102191,92550.0,92549.0,0.001]
[1763611051937,0.01080508,92549.0,92546.0,0.01080543]
[1763611052098,0.03102214,92548.0,92545.0,0.00625]
[1763611052316,0.01080508,92549.0,92547.0,0.001]
[1763611052669,0.02021642,92548.0,92547.0,0.03341596]
[1763611053417,0.02021642,92548.0,92547.0,0.04487596]
[1763611053622,0.00022964,92552.0,92551.0,0.21609707]
[1763611053801,0.02408548,92552.0,92551.0,0.24818929]
[1763611054001,0.02408548,92552.0,92551.0,0.22855707]
[1763611054202,0.02408548,92552.0,92551.0,0.2500411]
[1763611054457,0.00386964,92552.0,92551.0,0.2625011]
[1763611054687,0.00386964,92552.0,92551.0,0.24101707]
[1763611054865,0.00386964,92552.0,92551.0,0.24301707]
[1763611055168,0.00022964,92552.0,92551.0,0.24201707]
[1763611056141,0.00022964,92552.0,92551.0,0.34101707]
[1763611057502,0.00122964,92552.0,92551.0,0.34101707]
[1763611060134,0.00122964,92552.0,92551.0,0.11246]
[1763611060485,0.04077964,92552.0,92551.0,0.1]
[1763611060610,0.01762964,92552.0,92551.0,0.1]
[1763611060823,0.01762964,92552.0,92549.0,0.01080508]
[1763611061228,0.01762964,92552.0,92550.0,0.2160994]
[1763611061429,0.01762964,92552.0,92549.0,0.01080508]
[1763611062231,0.01762964,92552.0,92549.0,0.22690487]
[1763611062649,0.01762964,92552.0,92550.0,0.21609733]
[1763611062875,0.01662964,92552.0,92550.0,0.21609733]
[1763611063077,0.01662964,92552.0,92549.0,0.22690487]
[1763611063844,0.1102925,92550.0,92549.0,0.22690487]
[1763611066024,0.1112925,92550.0,92549.0,0.22690487]
[1763611066437,0.002,92550.0,92549.0,0.22690487]
[1763611067606,0.002,92550.0,92549.0,0.23936487]
[1763611067959,0.002,92550.0,92549.0,0.25182487]
[1763611068159,0.00564,92550.0,92549.0,0.25182487]
[1763611068501,0.00564,92550.0,92549.0,0.23936487]
[1763611068936,0.00564,92550.0,92549.0,0.25182487]
[1763611069208,0.00564,92550.0,92549.0,0.35182487]
[1763611070025,0.00564,92550.0,92549.0,0.33936487]
[1763611070432,0.00564,92550.0,92549.0,0.1]
[1763611071713,0.00564,92550.0,92548.0,0.21610257]
[1763611072528,0.00464,92550.0,92548.0,0.21610257]
[1763611072845,0.00564,92550.0,92548.0,0.21610257]
[1763611073047,0.00464,92550.0,92548.0,0.21610257]
[1763611073382,0.00564,92550.0,92548.0,0.21610257]
[1763611073825,0.00564,92550.0,92539.0,0.23317941]
[1763611073826,0.01080532,92547.0,92539.0,0.00625]
[1763611074044,0.0164,92548.0,92546.0,0.21610646]
[1763611074251,0.00564,92550.0,92546.0,0.21610646]
[1763611074252,0.00564,92550.0,92548.0,0.21610407]
[1763611074587,0.00564,92550.0,92549.0,0.02161017]
[1763611074949,0.00564,92550.0,92549.0,0.03407017]
[1763611075371,0.00464,92550.0,92549.0,0.03407017]
[1763611075572,0.00364,92550.0,92549.0,0.03407017]
[1763611075947,0.00464,92550.0,92549.0,0.03407017]
[1763611076575,0.00564,92550.0,92549.0,0.03407017]
[1763611077741,0.002,92550.0,92549.0,0.03407017]
[1763611077941,0.00564,92550.0,92549.0,0.04653017]
[1763611078345,0.002,92550.0,92549.0,0.04653017]
[1763611078593,0.00564,92550.0,92549.0,0.04653017]
[1763611079272,0.00564,92550.0,92549.0,0.14653017]
[1763611081051,0.00564,92550.0,92549.0,0.13407017]
[1763611082138,0.00564,92550.0,92549.0,0.14653017]
[1763611082360,0.002,92550.0,92549.0,0.14653017]
[1763611083779,0.002,92550.0,92549.0,0.13407017]
[1763611083989,0.002,92550.0,92549.0,0.12492]
[1763611084314,0.002,92550.0,92549.0,0.11246]
[1763611084753,0.002,92550.0,92549.0,0.1]
[1763611085375,0.002,92550.0,92549.0,0.14653017]
[1763611086818,0.002,92550.0,92549.0,0.52163266]
[1763611087031,0.002,92550.0,92549.0,0.50002249]
[1763611087495,0.002,92550.0,92549.0,0.32289302]
[1763611087710,0.001,92550.0,92549.0,0.42289302]
[1763611088160,0.002,92550.0,92549.0,0.42289302]
[1763611088618,0.001,92550.0,92549.0,0.42289302]
[1763611088852,0.002,92550.0,92549.0,0.52289302]
[1763611092293,0.002,92550.0,92549.0,0.42289302]
[1763611098360,0.002,92550.0,92549.0,0.1]
[1763611101042,0.002,92550.0,92549.0,0.11374106]
[1763611103094,0.002,92550.0,92549.0,0.1]
[1763611107524,0.002,92550.0,92549.0,0.12161017]
[1763611114271,0.002,92550.0,92549.0,0.1]
[1763611121357,0.002,92550.0,92549.0,0.11544239]
[1763611123420,0.002,92550.0,92549.0,0.43844239]
[1763611123620,0.002,92550.0,92549.0,0.423]
[1763611124477,0.002,92550.0,92549.0,0.42732553]
[1763611129486,0.002,92550.0,92549.0,0.52732553]
[1763611131350,0.001,92550.0,92549.0,0.52732553]
[1763611131969,0.00022964,92552.0,92550.0,0.5390994]
[1763611132192,0.00022964,92552.0,92551.0,0.0216097]
[1763611133556,0.00122964,92552.0,92551.0,0.0216097]
[1763611133961,0.00122964,92552.0,92551.0,0.4446097]
[1763611134172,0.00122964,92552.0,92551.0,0.523]
[1763611136630,0.00122964,92552.0,92551.0,0.57510249]
[1763611138037,0.00122964,92552.0,92551.0,0.57942738]
[1763611141037,0.00122964,92552.0,92551.0,0.15642738]
[1763611141243,0.00122964,92552.0,92551.0,0.17803708]
[1763611141991,0.00122964,92552.0,92551.0,0.27803708]
[1763611142186,0.00122964,92552.0,92551.0,0.25642738]
[1763611143016,0.00122964,92552.0,92551.0,0.57942738]
[1763611143403,0.00364,92591.0,92567.0,0.21605971]
[1763611143628,0.00364,92591.0,92567.0,0.23766568]
[1763611144020,0.00364,92591.0,92567.0,0.24982568]
[1763611144216,0.00364,92591.0,92567.0,0.22821971]
[1763611144431,0.1102925,92592.0,92567.0,0.01216]
[1763611144745,0.1102925,92592.0,92567.0,0.24982568]
[1763611144958,0.01209,92591.0,92567.0,0.32821971]
[1763611145135,0.1102925,92592.0,92567.0,0.32821971]
[1763611145531,0.00108681,92568.0,92567.0,0.32821971]
[1763611145920,0.00208681,92568.0,92567.0,0.32821971]
[1763611146770,0.00108681,92568.0,92567.0,0.32821971]
[1763611148205,8.681e-05,92568.0,92567.0,0.32821971]
[1763611149144,0.00054599,92568.0,92567.0,0.32821971]
[1763611155967,0.01209,92616.0,92599.0,0.21598505]
[1763611156310,0.00082274,92600.0,92599.0,0.21598505]
[1763611156717,0.00082274,92600.0,92599.0,0.22814505]
[1763611157341,0.00082274,92600.0,92599.0,0.22914505]
[1763611157566,0.00082274,92600.0,92599.0,0.32914505]
[1763611158368,0.00182274,92600.0,92599.0,0.32914505]
[1763611158999,0.00182274,92600.0,92599.0,0.32814505]
[1763611159376,0.00282274,92600.0,92599.0,0.32814505]
[1763611161534,0.0037407,92600.0,92599.0,0.32814505]
[1763611162159,0.0037407,92600.0,92599.0,0.11216]
[1763611162315,0.0037407,92600.0,92599.0,0.32814505]
[1763611163036,0.0037407,92600.0,92599.0,0.11216]
[1763611163243,0.0037407,92600.0,92599.0,0.1]
[1763611163621,0.0037407,92600.0,92599.0,0.1215985]
[1763611167616,0.0419807,92600.0,92599.0,0.1]
[1763611168625,0.01080006,92592.0,92589.0,0.01080041]
[1763611168790,0.03382925,92599.0,92594.0,0.01079983]
[1763611168990,0.02303,92599.0,92596.0,0.2159917]
[1763611169185,0.02303,92599.0,92596.0,0.2483905]
[1763611169435,0.02303,92599.0,92586.0,0.21601388]
[1763611169436,0.01080123,92582.0,92579.0,0.01080053]
[1763611169641,0.02303,92599.0,92530.0,0.1102925]
[1763611169642,0.03810485,92551.0,92530.0,0.2]
[1763611169796,0.00364,92550.0,92547.0,0.01080532]
[1763611170230,0.00364,92550.0,92548.0,0.21713157]
[1763611170430,0.00364,92550.0,92548.0,0.00102812]
[1763611170853,0.00368224,92550.0,92549.0,0.1]
[1763611171880,0.04273224,92550.0,92549.0,0.1]
[1763611172255,0.04273224,92550.0,92549.0,0.101]
[1763611172459,0.04273224,92550.0,92549.0,0.001]
[1763611173168,0.04273224,92550.0,92549.0,0.002]
[1763611173790,0.04273224,92550.0,92549.0,0.001]
[1763611173999,0.00368224,92550.0,92549.0,0.21710174]
[1763611174252,0.00368224,92550.0,92549.0,0.21810174]
[1763611175926,0.25885164,92550.0,92549.0,0.002]
[1763611180616,0.04275224,92550.0,92549.0,0.002]
[1763611181234,4.224e-05,92550.0,92549.0,0.21810174]
[1763611181439,0.04275224,92550.0,92549.0,0.002]
[1763611182016,0.00368224,92550.0,92549.0,0.002]
[1763611182215,0.00368224,92550.0,92549.0,0.21810174]
[1763611182440,0.58185164,92550.0,92549.0,0.002]
[1763611183355,0.58185164,92550.0,92549.0,0.001]
[1763611184345,0.323,92549.0,92548.0,0.00102812]
[1763611184542,0.37339,92549.0,92548.0,0.00102812]
[1763611185373,0.05039,92549.0,92548.0,0.00102812]
[1763611185578,0.07200286,92549.0,92548.0,0.00202812]
[1763611186152,0.07564286,92549.0,92548.0,0.00202812]
[1763611187154,0.07200286,92549.0,92548.0,0.00202812]
[1763611187363,0.05403,92549.0,92548.0,0.00202812]
[1763611187582,0.39864286,92549.0,92548.0,0.00202812]
[1763611187799,0.37703,92549.0,92548.0,0.00202812]
[1763611192388,0.37703,92549.0,92522.0,0.226971]
[1763611192389,0.01080975,92509.0,92490.0,0.0002]
[1763611192696,0.01081069,92501.0,92496.0,0.01081127]
[1763611192837,0.01081081,92500.0,92496.0,0.01081127]
[1763611193044,0.01081116,92497.0,92492.0,0.22704468]
[1763611193289,0.00364,92496.0,92493.0,0.22704206]
[1763611193448,0.00364,92496.0,92490.0,0.2164374]
[1763611193675,0.00364,92496.0,92493.0,0.00012677]
[1763611194217,0.00364,92496.0,92494.0,0.31622805]
[1763611195559,0.00364,92496.0,92494.0,0.31722805]
[1763611196618,0.00364,92496.0,92494.0,0.31822805]
[1763611198363,0.01523,92495.0,92494.0,0.31822805]
[1763611198510,0.01523,92495.0,92494.0,0.102]
[1763611198710,0.01523,92495.0,92494.0,0.10355113]
[1763611199340,0.01523,92495.0,92494.0,0.10255113]
[1763611199555,0.01523,92495.0,92494.0,0.10355113]
[1763611199814,0.03907,92495.0,92494.0,0.10355113]
[1763611199988,0.02655,92495.0,92494.0,0.10355113]
[1763611200166,0.01132,92501.0,92500.0,0.21621621]
[1763611200399,0.0351387,92501.0,92500.0,0.02162162]
[1763611200581,0.0351387,92501.0,92499.0,0.22702748]
[1763611200778,0.0201787,92500.0,92499.0,0.22702748]
[1763611200979,0.01496,92501.0,92499.0,0.22702748]
[1763611201229,0.01496,92501.0,92500.0,0.02162162]
[1763611201386,0.01132,92508.0,92505.0,0.22701474]
[1763611201584,0.02381579,92507.0,92506.0,0.21620219]
[1763611201793,0.02017579,92507.0,92506.0,0.02162021]
[1763611201959,0.00364,92507.0,92506.0,0.02162021]
[1763611202166,0.1102925,92520.0,92517.0,0.22698337]
[1763611202405,0.03550386,92519.0,92517.0,0.22698483]
[1763611202638,0.03554386,92518.0,92517.0,0.01080882]
[1763611203396,0.02381386,92518.0,92517.0,0.01080882]
[1763611203964,0.06364386,92518.0,92515.0,0.22698826]
[1763611204155,0.01537,92516.0,92515.0,0.22698826]
[1763611204356,0.03554386,92516.0,92515.0,0.22698826]